[Event "RUS-ch Blitz 2021"]
[Site "Sochi"]
[Date "2021.10.11"]
[Round "13.11"]
[White "Kokarev, Dmitry"]
[Black "Khanin, Semen"]
[Result "1-0"]
[ECO "A26"]
[WhiteElo "2579"]
[BlackElo "2521"]
[Annotator "ChessBase"]
[PlyCount "103"]
[EventDate "2021.10.11"]
[EventType "blitz"]
[EventCountry "RUS"]
[SourceTitle "playchess.com"]
[Source "ChessBase"]
[SourceQuality "1"]
[TimeControl "180+2"]

1. c4 {[%emt 0:00:07]} e5 {[%emt 0:00:00]} 2. d3 {[%emt 0:00:00]} Nf6 {[%emt 0:
00:00]} 3. Nf3 {[%emt 0:00:00]} Nc6 {[%emt 0:00:12]} 4. a3 {[%emt 0:00:00]} a5
{[%emt 0:00:03]} 5. g3 {[%emt 0:00:00]} g6 {[%emt 0:00:02]} 6. Bg2 {[%emt 0:00:
04]} Bg7 {[%emt 0:00:00]} 7. Nc3 {[%emt 0:00:07]} O-O {[%emt 0:00:00]} 8. O-O {
[%emt 0:00:02]} d6 {[%emt 0:00:11]} 9. Rb1 {[%emt 0:00:00]} h6 {[%emt 0:00:23]}
10. b4 {[%emt 0:00:03]} axb4 {[%emt 0:00:09]} 11. axb4 {[%emt 0:00:04]} Be6 {
[%emt 0:00:00]} 12. Nd2 {[%emt 0:00:02]} Rb8 {[%emt 0:00:08]} 13. b5 {[%emt 0:
00:06]} Ne7 {[%emt 0:00:00]} 14. e4 {[%emt 0:00:03]} Nd7 {[%emt 0:00:04]} 15.
Nd5 {[%emt 0:00:09]} Nc5 {[%emt 0:00:07]} 16. Nb3 {[%emt 0:00:07]} Nxb3 {
[%emt 0:00:06]} 17. Qxb3 {[%emt 0:00:04]} f5 {[%emt 0:00:07]} 18. exf5 {
[%emt 0:00:05]} Nxf5 {[%emt 0:00:05]} 19. Bb2 {[%emt 0:00:03]} Qd7 {[%emt 0:00:
10]} 20. Bc3 {[%emt 0:00:19]} Kh7 {[%emt 0:00:09]} 21. Qb2 {[%emt 0:00:20]} c6
{[%emt 0:00:10]} 22. Ne3 {[%emt 0:00:01]} Nxe3 {[%emt 0:00:06]} 23. fxe3 {
[%emt 0:00:00]} Rxf1+ {[%emt 0:00:18]} 24. Bxf1 {[%emt 0:00:08]} Rf8 {[%emt 0:
00:23]} 25. bxc6 {[%emt 0:00:03]} bxc6 {[%emt 0:00:00]} 26. Qb7 {[%emt 0:00:03]
} Rf7 {[%emt 0:00:36]} 27. Qxd7 {[%emt 0:00:03]} Rxd7 {[%emt 0:00:07]} 28. Rb6
{[%emt 0:00:00]} c5 {[%emt 0:00:03]} 29. Bg2 {[%emt 0:00:05]} Bf5 {[%emt 0:00:
03]} 30. Bc6 {[%emt 0:00:06]} Ra7 {[%emt 0:00:10]} 31. e4 {[%emt 0:00:22]} Bh3
{[%emt 0:00:00]} 32. Bd5 {[%emt 0:00:02]} Ra3 {[%emt 0:00:00]} 33. Be1 {
[%emt 0:00:11]} Rxd3 {[%emt 0:00:05]} 34. Kf2 {[%emt 0:00:00]} Ra3 {[%emt 0:00:
04]} 35. Rxd6 {[%emt 0:00:04]} Ra2+ {[%emt 0:00:05]} 36. Ke3 {[%emt 0:00:00]}
h5 {[%emt 0:00:00]} 37. Kd3 {[%emt 0:00:12]} Rxh2 {[%emt 0:00:00]} 38. Rc6 {
[%emt 0:00:01]} Bf1+ {[%emt 0:00:05]} 39. Kc3 {[%emt 0:00:03]} Rg2 {[%emt 0:00:
02]} 40. Rxc5 {[%emt 0:00:06]} Bf6 {[%emt 0:00:01]} 41. Rc7+ {[%emt 0:00:02]}
Kh6 {[%emt 0:00:06]} 42. Rf7 {[%emt 0:00:00]} Re2 {[%emt 0:00:03]} 43. Bd2+ {
[%emt 0:00:06]} Rxd2 {[%emt 0:00:00]} 44. Kxd2 {[%emt 0:00:02]} Bg5+ {[%emt 0:
00:01]} 45. Ke1 {[%emt 0:00:03]} Bd3 {[%emt 0:00:01]} 46. c5 {[%emt 0:00:03]}
h4 {[%emt 0:00:01]} 47. gxh4 {[%emt 0:00:01]} Bxh4+ {[%emt 0:00:07]} 48. Kd2 {
[%emt 0:00:00]} Bb5 {[%emt 0:00:00]} 49. c6 {[%emt 0:00:04]} Bg5+ {[%emt 0:00:
00]} 50. Kc3 {[%emt 0:00:05]} Bxc6 {[%emt 0:00:06]} 51. Bxc6 {[%emt 0:00:00]}
Bf4 {[%emt 0:00:00]} 52. Bd7 {[%emt 0:00:06]} 1-0

[Event "RUS-ch Blitz 2021"]
[Site "Sochi"]
[Date "2021.10.11"]
[Round "13.12"]
[White "Afanasiev, Nikita"]
[Black "Zakaryan, David"]
[Result "1-0"]
[ECO "A33"]
[WhiteElo "2560"]
[BlackElo "2283"]
[Annotator "ChessBase"]
[PlyCount "91"]
[EventDate "2021.10.11"]
[EventType "blitz"]
[EventCountry "RUS"]
[SourceTitle "playchess.com"]
[Source "ChessBase"]
[SourceQuality "1"]
[TimeControl "180+2"]

1. c4 {[%emt 0:00:00]} e6 {[%emt 0:00:07]} 2. Nf3 {[%emt 0:00:04]} Nf6 {
[%emt 0:00:04]} 3. g3 {[%emt 0:00:00]} c5 {[%emt 0:00:07]} 4. Bg2 {[%emt 0:00:
02]} Be7 {[%emt 0:00:08]} 5. O-O {[%emt 0:00:07]} O-O {[%emt 0:00:00]} 6. d4 {
[%emt 0:00:00]} cxd4 {[%emt 0:00:04]} 7. Nxd4 {[%emt 0:00:00]} Nc6 {[%emt 0:00:
04]} 8. Nc3 {[%emt 0:00:00]} a6 {[%emt 0:00:03]} 9. Bf4 {[%emt 0:00:08]} Qa5 {
[%emt 0:00:11]} 10. Rc1 {[%emt 0:00:09]} Rd8 {[%emt 0:00:13]} 11. Nb3 {[%emt 0:
00:01]} Qh5 {[%emt 0:00:09]} 12. Bd6 {[%emt 0:00:10]} Bxd6 {[%emt 0:00:14]} 13.
Qxd6 {[%emt 0:00:00]} Ne8 {[%emt 0:00:02]} 14. Qf4 {[%emt 0:00:18]} d6 {
[%emt 0:00:10]} 15. Na4 {[%emt 0:00:03]} Qe5 {[%emt 0:00:09]} 16. Nb6 {[%emt 0:
00:15]} Rb8 {[%emt 0:00:00]} 17. Rc2 {[%emt 0:00:32]} Qxf4 {[%emt 0:00:00]} 18.
gxf4 {[%emt 0:00:01]} Kf8 {[%emt 0:00:10]} 19. Rd2 {[%emt 0:00:06]} Ke7 {
[%emt 0:00:00]} 20. Rfd1 {[%emt 0:00:03]} Nc7 {[%emt 0:00:22]} 21. Nd4 {
[%emt 0:01:05]} Nxd4 {[%emt 0:01:06]} 22. Rxd4 {[%emt 0:00:00]} Na8 {[%emt 0:
00:09]} 23. Nxc8+ {[%emt 0:00:29]} Rdxc8 {[%emt 0:00:06]} 24. Rxd6 {[%emt 0:00:
00]} Rc7 {[%emt 0:00:07]} 25. b3 {[%emt 0:00:00]} Rbc8 {[%emt 0:00:02]} 26. e3
{[%emt 0:00:06]} g6 {[%emt 0:00:05]} 27. h4 {[%emt 0:00:00]} h5 {[%emt 0:00:00]
} 28. Bf3 {[%emt 0:00:07]} Kf6 {[%emt 0:00:00]} 29. Kg2 {[%emt 0:00:04]} Ke7 {
[%emt 0:00:04]} 30. Kg3 {[%emt 0:00:00]} Kf6 {[%emt 0:00:00]} 31. Be2 {[%emt 0:
00:07]} Ke7 {[%emt 0:00:01]} 32. b4 {[%emt 0:00:00]} Rb8 {[%emt 0:00:07]} 33.
c5 {[%emt 0:00:01]} Rbc8 {[%emt 0:00:01]} 34. a4 {[%emt 0:00:07]} a5 {[%emt 0:
00:00]} 35. bxa5 {[%emt 0:00:00]} Rxc5 {[%emt 0:00:04]} 36. a6 {[%emt 0:00:02]}
bxa6 {[%emt 0:00:00]} 37. Bxa6 {[%emt 0:00:03]} R8c7 {[%emt 0:00:05]} 38. Bb5 {
[%emt 0:00:00]} Kf6 {[%emt 0:00:00]} 39. Ra6 {[%emt 0:00:05]} Rc8 {[%emt 0:00:
04]} 40. Rd7 {[%emt 0:00:00]} Nc7 {[%emt 0:00:00]} 41. Ra7 {[%emt 0:00:01]} e5
{[%emt 0:00:01]} 42. fxe5+ {[%emt 0:00:04]} Ke6 {[%emt 0:00:02]} 43. f4 {
[%emt 0:00:05]} Rc3 {[%emt 0:00:00]} 44. Kf3 {[%emt 0:00:01]} f6 {[%emt 0:00:
07]} 45. Rd6+ {[%emt 0:00:00]} Ke7 {[%emt 0:00:01]} 46. Rxf6 {[%emt 0:00:00]}
1-0

[Event "RUS-ch Blitz 2021"]
[Site "Sochi"]
[Date "2021.10.11"]
[Round "13.13"]
[White "Kezin, Roman"]
[Black "Mikhailovsky, Vladimir"]
[Result "1-0"]
[ECO "E61"]
[WhiteElo "2492"]
[BlackElo "2184"]
[Annotator "ChessBase"]
[PlyCount "83"]
[EventDate "2021.10.11"]
[EventType "blitz"]
[EventCountry "RUS"]
[SourceTitle "playchess.com"]
[Source "ChessBase"]
[SourceQuality "1"]
[TimeControl "180+2"]

1. d4 {[%emt 0:00:00]} d6 {[%emt 0:00:06]} 2. Nf3 {[%emt 0:00:04]} Nf6 {
[%emt 0:00:00]} 3. c4 {[%emt 0:00:00]} g6 {[%emt 0:00:00]} 4. Nc3 {[%emt 0:00:
09]} Bf5 {[%emt 0:00:00]} 5. d5 {[%emt 0:00:00]} Bg7 {[%emt 0:00:00]} 6. Nd4 {
[%emt 0:00:03]} Bd7 {[%emt 0:00:01]} 7. e4 {[%emt 0:00:00]} c5 {[%emt 0:00:00]}
8. Nc2 {[%emt 0:00:08]} a6 {[%emt 0:00:12]} 9. a4 {[%emt 0:00:08]} a5 {[%emt 0:
00:00]} 10. Be2 {[%emt 0:00:08]} O-O {[%emt 0:00:16]} 11. O-O {[%emt 0:00:00]}
e5 {[%emt 0:00:00]} 12. f4 {[%emt 0:00:52]} exf4 {[%emt 0:00:00]} 13. Bxf4 {
[%emt 0:00:00]} Qe7 {[%emt 0:00:05]} 14. Bf3 {[%emt 0:00:04]} Na6 {[%emt 0:00:
13]} 15. Qd2 {[%emt 0:00:41]} Nb4 {[%emt 0:00:06]} 16. Rae1 {[%emt 0:00:01]}
Ne8 {[%emt 0:00:00]} 17. Na3 {[%emt 0:00:33]} Be5 {[%emt 0:00:34]} 18. g3 {
[%emt 0:00:29]} Bh3 {[%emt 0:00:16]} 19. Bg2 {[%emt 0:00:04]} Bxg2 {[%emt 0:00:
00]} 20. Kxg2 {[%emt 0:00:05]} Ng7 {[%emt 0:00:11]} 21. Nab5 {[%emt 0:00:00]}
Rae8 {[%emt 0:00:07]} 22. Bxe5 {[%emt 0:00:03]} Qxe5 {[%emt 0:00:04]} 23. Rf3 {
[%emt 0:00:04]} Re7 {[%emt 0:00:20]} 24. Qf4 {[%emt 0:00:01]} Rd8 {[%emt 0:00:
19]} 25. Ref1 {[%emt 0:00:09]} f5 {[%emt 0:00:09]} 26. Qxe5 {[%emt 0:00:04]}
Rxe5 {[%emt 0:00:00]} 27. exf5 {[%emt 0:00:04]} Nxf5 {[%emt 0:00:02]} 28. Kg1 {
[%emt 0:00:00]} h5 {[%emt 0:00:07]} 29. Nc7 {[%emt 0:00:00]} Nc2 {[%emt 0:00:
07]} 30. Ne6 {[%emt 0:00:04]} Rd7 {[%emt 0:00:00]} 31. Nb5 {[%emt 0:00:00]}
Nce3 {[%emt 0:00:09]} 32. Rc1 {[%emt 0:00:00]} Ng4 {[%emt 0:00:10]} 33. h3 {
[%emt 0:00:05]} Ngh6 {[%emt 0:00:07]} 34. Rcf1 {[%emt 0:00:00]} Rf7 {[%emt 0:
00:06]} 35. R1f2 {[%emt 0:00:05]} Rd7 {[%emt 0:00:05]} 36. b3 {[%emt 0:00:00]}
Re1+ {[%emt 0:00:07]} 37. Kh2 {[%emt 0:00:06]} Re5 {[%emt 0:00:00]} 38. Rf4 {
[%emt 0:00:00]} Re3 {[%emt 0:00:00]} 39. g4 {[%emt 0:00:00]} hxg4 {[%emt 0:00:
10]} 40. hxg4 {[%emt 0:00:00]} Ng7 {[%emt 0:00:05]} 41. Rf8+ {[%emt 0:00:00]}
Kh7 {[%emt 0:00:00]} 42. Ng5# {[%emt 0:00:00]} 1-0

[Event "RUS-ch Blitz 2021"]
[Site "Sochi"]
[Date "2021.10.11"]
[Round "13.14"]
[White "Gutenev, Alexander"]
[Black "Zakhartsov, Vladimir"]
[Result "0-1"]
[ECO "B27"]
[WhiteElo "2455"]
[BlackElo "2514"]
[Annotator "ChessBase"]
[PlyCount "75"]
[EventDate "2021.10.11"]
[EventType "blitz"]
[EventCountry "RUS"]
[SourceTitle "playchess.com"]
[Source "ChessBase"]
[SourceQuality "1"]
[TimeControl "180+2"]

1. e4 {[%emt 0:00:00]} c5 {[%emt 0:00:06]} 2. Nf3 {[%emt 0:00:11]} g6 {[%emt 0:
00:00]} 3. d4 {[%emt 0:00:00]} cxd4 {[%emt 0:00:00]} 4. Qxd4 {[%emt 0:00:00]}
Nf6 {[%emt 0:00:06]} 5. Nc3 {[%emt 0:00:02]} Nc6 {[%emt 0:00:00]} 6. Qa4 {
[%emt 0:00:04]} Qc7 {[%emt 0:00:00]} 7. g3 {[%emt 0:00:18]} Bg7 {[%emt 0:00:53]
} 8. Bf4 {[%emt 0:00:00]} Qb6 {[%emt 0:00:02]} 9. Qb5 {[%emt 0:00:26]} Qxb5 {
[%emt 0:00:07]} 10. Bxb5 {[%emt 0:00:00]} O-O {[%emt 0:00:04]} 11. O-O-O {
[%emt 0:00:09]} d6 {[%emt 0:00:00]} 12. Bxc6 {[%emt 0:00:13]} bxc6 {[%emt 0:00:
02]} 13. e5 {[%emt 0:00:03]} dxe5 {[%emt 0:00:55]} 14. Nxe5 {[%emt 0:00:00]}
Ng4 {[%emt 0:00:02]} 15. Nd3 {[%emt 0:00:20]} Bf5 {[%emt 0:00:06]} 16. h3 {
[%emt 0:00:04]} Bxd3 {[%emt 0:00:14]} 17. hxg4 {[%emt 0:00:03]} Bc4 {[%emt 0:
00:00]} 18. Bh6 {[%emt 0:00:12]} Rfd8 {[%emt 0:00:14]} 19. Bxg7 {[%emt 0:00:04]
} Kxg7 {[%emt 0:00:00]} 20. Rde1 {[%emt 0:00:03]} Rd7 {[%emt 0:00:09]} 21. g5 {
[%emt 0:00:05]} f6 {[%emt 0:00:00]} 22. Rh4 {[%emt 0:00:03]} Bf7 {[%emt 0:00:
12]} 23. Reh1 {[%emt 0:00:12]} Bg8 {[%emt 0:00:00]} 24. gxf6+ {[%emt 0:00:42]}
exf6 {[%emt 0:00:00]} 25. Re1 {[%emt 0:00:03]} Rad8 {[%emt 0:00:03]} 26. Rhe4 {
[%emt 0:00:03]} Kf8 {[%emt 0:00:05]} 27. b3 {[%emt 0:00:12]} g5 {[%emt 0:00:04]
} 28. Na4 {[%emt 0:00:07]} Rd2 {[%emt 0:00:08]} 29. R4e2 {[%emt 0:00:03]} Rxe2
{[%emt 0:00:03]} 30. Rxe2 {[%emt 0:00:00]} h5 {[%emt 0:00:00]} 31. Nc5 {
[%emt 0:00:05]} Rd5 {[%emt 0:00:10]} 32. b4 {[%emt 0:00:04]} a5 {[%emt 0:00:04]
} 33. a3 {[%emt 0:00:00]} axb4 {[%emt 0:00:03]} 34. axb4 {[%emt 0:00:00]} h4 {
[%emt 0:00:00]} 35. gxh4 {[%emt 0:00:15]} gxh4 {[%emt 0:00:00]} 36. Re3 {
[%emt 0:00:03]} Rh5 {[%emt 0:00:08]} 37. Ne4 {[%emt 0:00:00]} h3 {[%emt 0:00:
08]} 38. Ng3 {[%emt 0:00:07]} 0-1

[Event "RUS-ch Blitz 2021"]
[Site "Sochi"]
[Date "2021.10.11"]
[Round "13.15"]
[White "Samusenko, Maksim"]
[Black "Bocharov, Dmitry"]
[Result "0-1"]
[ECO "B93"]
[WhiteElo "2461"]
[BlackElo "2517"]
[Annotator "ChessBase"]
[PlyCount "72"]
[EventDate "2021.10.11"]
[EventType "blitz"]
[EventCountry "RUS"]
[SourceTitle "playchess.com"]
[Source "ChessBase"]
[SourceQuality "1"]
[TimeControl "180+2"]

1. e4 {[%emt 0:00:00]} c5 {[%emt 0:00:07]} 2. Nf3 {[%emt 0:00:03]} d6 {[%emt 0:
00:00]} 3. d4 {[%emt 0:00:00]} cxd4 {[%emt 0:00:00]} 4. Nxd4 {[%emt 0:00:00]}
Nf6 {[%emt 0:00:04]} 5. Nc3 {[%emt 0:00:03]} a6 {[%emt 0:00:00]} 6. f4 {
[%emt 0:00:00]} Qc7 {[%emt 0:00:05]} 7. Bd3 {[%emt 0:00:10]} g6 {[%emt 0:00:00]
} 8. O-O {[%emt 0:00:02]} Bg7 {[%emt 0:00:02]} 9. Kh1 {[%emt 0:00:02]} O-O {
[%emt 0:00:07]} 10. Nf3 {[%emt 0:00:14]} Nbd7 {[%emt 0:00:01]} 11. Qe1 {
[%emt 0:00:04]} Nc5 {[%emt 0:00:06]} 12. Qh4 {[%emt 0:00:19]} e6 {[%emt 0:00:
13]} 13. Be3 {[%emt 0:00:12]} b5 {[%emt 0:00:17]} 14. Bd4 {[%emt 0:00:11]} Nh5
{[%emt 0:00:20]} 15. a3 {[%emt 0:00:30]} Bb7 {[%emt 0:00:25]} 16. Rae1 {
[%emt 0:00:14]} e5 {[%emt 0:00:05]} 17. fxe5 {[%emt 0:00:06]} dxe5 {[%emt 0:00:
01]} 18. Be3 {[%emt 0:00:07]} Nf4 {[%emt 0:00:02]} 19. Bxf4 {[%emt 0:00:20]}
exf4 {[%emt 0:00:00]} 20. e5 {[%emt 0:00:07]} Nxd3 {[%emt 0:01:04]} 21. cxd3 {
[%emt 0:00:00]} Bxf3 {[%emt 0:00:00]} 22. Rxf3 {[%emt 0:00:04]} Bxe5 {[%emt 0:
00:06]} 23. Nd5 {[%emt 0:00:12]} Qd6 {[%emt 0:00:03]} 24. Rxe5 {[%emt 0:00:29]}
Qxe5 {[%emt 0:00:04]} 25. Nf6+ {[%emt 0:00:02]} Kg7 {[%emt 0:00:00]} 26. Ng4 {
[%emt 0:00:00]} Qxb2 {[%emt 0:00:18]} 27. Qh6+ {[%emt 0:00:20]} Kg8 {[%emt 0:
00:00]} 28. h4 {[%emt 0:00:04]} f5 {[%emt 0:00:00]} 29. Nf2 {[%emt 0:00:00]}
Rae8 {[%emt 0:00:12]} 30. Nh3 {[%emt 0:00:04]} Re1+ {[%emt 0:00:05]} 31. Kh2 {
[%emt 0:00:00]} Qa1 {[%emt 0:00:03]} 32. Nxf4 {[%emt 0:00:01]} Rh1+ {[%emt 0:
00:02]} 33. Kg3 {[%emt 0:00:01]} Qe1+ {[%emt 0:00:03]} 34. Rf2 {[%emt 0:00:01]}
Rf1 {[%emt 0:00:06]} 35. Nh3 {[%emt 0:00:08]} Rxf2 {[%emt 0:00:00]} 36. Nxf2 {
[%emt 0:00:00]} f4+ {[%emt 0:00:03]} 0-1

[Event "RUS-ch Blitz 2021"]
[Site "Sochi"]
[Date "2021.10.11"]
[Round "13.16"]
[White "Gavrilov, Oleg"]
[Black "Nesterov, Arseniy"]
[Result "1/2-1/2"]
[ECO "D02"]
[WhiteElo "2356"]
[BlackElo "2514"]
[Annotator "ChessBase"]
[PlyCount "65"]
[EventDate "2021.10.11"]
[EventType "blitz"]
[EventCountry "RUS"]
[SourceTitle "playchess.com"]
[Source "ChessBase"]
[SourceQuality "1"]
[TimeControl "180+2"]

1. d4 {[%emt 0:00:00]} d5 {[%emt 0:00:07]} 2. Bf4 {[%emt 0:00:04]} Nf6 {
[%emt 0:00:00]} 3. e3 {[%emt 0:00:00]} Bf5 {[%emt 0:00:00]} 4. Bd3 {[%emt 0:00:
09]} Bg6 {[%emt 0:00:08]} 5. Nf3 {[%emt 0:00:01]} e6 {[%emt 0:00:00]} 6. O-O {
[%emt 0:00:11]} Bd6 {[%emt 0:00:07]} 7. Ne5 {[%emt 0:00:32]} O-O {[%emt 0:00:
07]} 8. Nxg6 {[%emt 0:00:15]} hxg6 {[%emt 0:00:00]} 9. c3 {[%emt 0:00:12]} c5 {
[%emt 0:00:13]} 10. Bxd6 {[%emt 0:00:05]} Qxd6 {[%emt 0:00:03]} 11. Nd2 {
[%emt 0:00:02]} Nc6 {[%emt 0:00:03]} 12. Nf3 {[%emt 0:00:00]} Rab8 {[%emt 0:00:
28]} 13. Qe2 {[%emt 0:00:21]} a6 {[%emt 0:00:11]} 14. dxc5 {[%emt 0:00:13]}
Qxc5 {[%emt 0:00:00]} 15. c4 {[%emt 0:00:21]} Rfd8 {[%emt 0:00:00]} 16. Rfd1 {
[%emt 0:00:10]} Rbc8 {[%emt 0:00:31]} 17. cxd5 {[%emt 0:00:01]} Rxd5 {[%emt 0:
00:12]} 18. Rac1 {[%emt 0:00:06]} Qb6 {[%emt 0:00:03]} 19. a3 {[%emt 0:00:11]}
Rcd8 {[%emt 0:00:00]} 20. b4 {[%emt 0:00:07]} R8d7 {[%emt 0:00:20]} 21. Bc4 {
[%emt 0:00:03]} Rxd1+ {[%emt 0:00:05]} 22. Rxd1 {[%emt 0:00:00]} Qd8 {[%emt 0:
00:05]} 23. Rxd7 {[%emt 0:00:00]} Qxd7 {[%emt 0:00:02]} 24. h3 {[%emt 0:00:03]}
Qd6 {[%emt 0:00:01]} 25. Qd3 {[%emt 0:00:11]} Qxd3 {[%emt 0:00:12]} 26. Bxd3 {
[%emt 0:00:00]} Kf8 {[%emt 0:00:03]} 27. Kf1 {[%emt 0:00:00]} Ke7 {[%emt 0:00:
00]} 28. Ke2 {[%emt 0:00:00]} Kd6 {[%emt 0:00:00]} 29. Ng5 {[%emt 0:00:05]} Ke7
{[%emt 0:00:00]} 30. Kd2 {[%emt 0:00:04]} Nd5 {[%emt 0:00:00]} 31. Be4 {
[%emt 0:00:06]} Ne5 {[%emt 0:00:14]} 32. Bxd5 {[%emt 0:00:14]} exd5 {[%emt 0:
00:00]} 33. Kc3 {[%emt 0:00:00]} 1/2-1/2

[Event "RUS-ch Blitz 2021"]
[Site "Sochi"]
[Date "2021.10.11"]
[Round "13.17"]
[White "Popov, Valerij"]
[Black "Faizrakhmanov, Ramil"]
[Result "1/2-1/2"]
[ECO "D37"]
[WhiteElo "2537"]
[BlackElo "2483"]
[Annotator "ChessBase"]
[PlyCount "73"]
[EventDate "2021.10.11"]
[EventType "blitz"]
[EventCountry "RUS"]
[SourceTitle "playchess.com"]
[Source "ChessBase"]
[SourceQuality "1"]
[TimeControl "180+2"]

1. Nf3 {[%emt 0:00:00]} Nf6 {[%emt 0:00:06]} 2. c4 {[%emt 0:00:02]} e6 {
[%emt 0:00:00]} 3. Nc3 {[%emt 0:00:00]} d5 {[%emt 0:00:00]} 4. d4 {[%emt 0:00:
00]} a6 {[%emt 0:00:00]} 5. cxd5 {[%emt 0:00:12]} exd5 {[%emt 0:00:00]} 6. Bg5
{[%emt 0:00:00]} Be6 {[%emt 0:00:07]} 7. e3 {[%emt 0:00:00]} Nbd7 {[%emt 0:00:
01]} 8. Bd3 {[%emt 0:00:02]} Bd6 {[%emt 0:00:01]} 9. Bf4 {[%emt 0:00:06]} Bxf4
{[%emt 0:00:22]} 10. exf4 {[%emt 0:00:00]} Bg4 {[%emt 0:00:05]} 11. O-O {
[%emt 0:00:13]} O-O {[%emt 0:00:05]} 12. h3 {[%emt 0:00:06]} Bxf3 {[%emt 0:00:
00]} 13. Qxf3 {[%emt 0:00:00]} c6 {[%emt 0:00:02]} 14. Rad1 {[%emt 0:00:07]}
Re8 {[%emt 0:00:04]} 15. g4 {[%emt 0:00:04]} Nf8 {[%emt 0:00:14]} 16. f5 {
[%emt 0:00:13]} Qb6 {[%emt 0:00:02]} 17. g5 {[%emt 0:00:07]} Ne4 {[%emt 0:00:
23]} 18. Bxe4 {[%emt 0:00:42]} dxe4 {[%emt 0:00:00]} 19. Nxe4 {[%emt 0:00:00]}
Qxb2 {[%emt 0:00:06]} 20. f6 {[%emt 0:00:04]} g6 {[%emt 0:00:06]} 21. Rd2 {
[%emt 0:00:08]} Qb4 {[%emt 0:00:08]} 22. a3 {[%emt 0:00:20]} Qa5 {[%emt 0:00:
07]} 23. Rd3 {[%emt 0:00:44]} Ne6 {[%emt 0:00:06]} 24. h4 {[%emt 0:00:08]} Qd5
{[%emt 0:00:07]} 25. Nc5 {[%emt 0:00:10]} Qxf3 {[%emt 0:00:15]} 26. Rxf3 {
[%emt 0:00:00]} Nxd4 {[%emt 0:00:04]} 27. Rd3 {[%emt 0:00:01]} Nf5 {[%emt 0:00:
09]} 28. Nxb7 {[%emt 0:00:05]} Nxh4 {[%emt 0:00:04]} 29. f4 {[%emt 0:00:05]}
Rab8 {[%emt 0:00:04]} 30. Nc5 {[%emt 0:00:02]} a5 {[%emt 0:00:10]} 31. Rfd1 {
[%emt 0:00:09]} h6 {[%emt 0:00:05]} 32. gxh6 {[%emt 0:00:08]} Nf5 {[%emt 0:00:
02]} 33. Nd7 {[%emt 0:00:04]} Rbd8 {[%emt 0:00:17]} 34. Ne5 {[%emt 0:00:02]}
Rxd3 {[%emt 0:00:00]} 35. Rxd3 {[%emt 0:00:00]} Nxh6 {[%emt 0:00:00]} 36. Rd6 {
[%emt 0:00:08]} c5 {[%emt 0:00:14]} 37. Rc6 {[%emt 0:00:02]} 1/2-1/2

[Event "RUS-ch Blitz 2021"]
[Site "Sochi"]
[Date "2021.10.11"]
[Round "13.18"]
[White "Obgolts, Erik"]
[Black "Zubritskiy, Artyom"]
[Result "0-1"]
[ECO "E18"]
[WhiteElo "2430"]
[BlackElo "2442"]
[Annotator "NA"]
[PlyCount "45"]
[EventDate "2021.10.11"]
[EventType "blitz"]
[EventCountry "RUS"]
[SourceTitle "playchess.com"]
[Source "ChessBase"]
[SourceQuality "1"]
[TimeControl "180+2"]

1. d4 {[%emt 0:00:00]} e6 {[%emt 0:00:00]} 2. Nf3 {[%emt 0:00:09]} f5 {[%emt 0:
00:00]} 3. c4 {[%emt 0:00:00]} Nf6 {[%emt 0:00:09]} 4. Nc3 {[%emt 0:00:02]} b6
{[%emt 0:00:38]} 5. g3 {[%emt 0:00:27]} Bb7 {[%emt 0:00:00]} 6. Bg2 {[%emt 0:
00:00]} Be7 {[%emt 0:00:07]} 7. O-O {[%emt 0:00:01]} Ne4 {[%emt 0:00:03]} 8.
Bd2 {[%emt 0:00:24]} O-O {[%emt 0:00:07]} 9. Nxe4 {[%emt 0:00:07]} Bxe4 {
[%emt 0:00:00]} 10. Bc3 {[%emt 0:00:03]} Bf6 {[%emt 0:00:09]} 11. Qd2 {[%emt 0:
00:00]} Qc8 {[%emt 0:00:19]} 12. Rad1 {[%emt 0:00:07]} Qb7 {[%emt 0:00:04]} 13.
d5 {[%emt 0:00:10]} Bxc3 {[%emt 0:00:40]} 14. Qxc3 {[%emt 0:00:00]} exd5 {
[%emt 0:00:12]} 15. cxd5 {[%emt 0:00:00]} a5 {[%emt 0:00:02]} 16. Ne5 {[%emt 0:
00:20]} Bxg2 {[%emt 0:00:00]} 17. Kxg2 {[%emt 0:00:00]} d6 {[%emt 0:00:17]} 18.
Nc6 {[%emt 0:00:53]} Nxc6 {[%emt 0:00:05]} 19. dxc6 {[%emt 0:00:00]} Qa6 {
[%emt 0:00:02]} 20. e3 {[%emt 0:00:02]} Rae8 {[%emt 0:00:09]} 21. Rd5 {[%emt 0:
00:00]} Qe2 {[%emt 0:00:06]} 22. Re1 {[%emt 0:00:16]} Qg4 {[%emt 0:00:06]} 23.
h3 {[%emt 0:00:01]} 0-1